[Event "African Games Rapid Open 2019"]
[Site "Casablanca"]
[Date "2019.08.27"]
[Round "8.22"]
[White "Winston Gerald, Mansfield Thomas"]
[Black "Marie, Patrick"]
[Result "0-1"]
[ECO "A45"]
[WhiteElo "1872"]
[BlackElo "1921"]
[Annotator "NA"]
[PlyCount "106"]
[EventDate "2019.08.26"]
[EventType "team-tourn"]
[EventCountry "MAR"]
[SourceTitle "playchess.com"]
[Source "ChessBase"]
[SourceQuality "1"]
[TimeControl "900+10"]

1. d4 {[%emt 0:00:00]} Nf6 {[%emt 0:00:00]} 2. Nc3 {[%emt 0:00:00]} e6 {[%emt 0:00:00]} 3. e4 {[%emt 0:00:00]} Bb4 4. Bd3 {[%emt 0:00:10]} d6 {[%emt 0:01:06]} 5. Bd2 {[%emt 0:00:09]} Nbd7 {[%emt 0:00:06]} 6. a3 {[%emt 0:00:04]} Ba5 {[%emt 0:00:05]} 7. Nf3 {[%emt 0:00:07]} O-O {[%emt 0:00:04]} 8. O-O {[%emt 0:00:04]} Re8 {[%emt 0:00:14]} 9. h3 {[%emt 0:00:20]} e5 {[%emt 0:00:02]} 10. Re1 {[%emt 0:00:14]} Bb6 {[%emt 0:00:49]} 11. d5 {[%emt 0:00:23]} Nf8 {[%emt 0:01:17]} 12. Ne2 {[%emt 0:00:26]} Ng6 {[%emt 0:00:15]} 13. c4 {[%emt 0:00:09]} Bd7 {[%emt 0:02:15]} 14. Ng3 {[%emt 0:00:08]} Qc8 {[%emt 0:00:30]} 15. Nf5 {[%emt 0:00:32]} Bxf5 {[%emt 0:03:27]} 16. exf5 {[%emt 0:00:01]} Nf4 {[%emt 0:03:20]} 17. Bxf4 {[%emt 0:00:06]} exf4 {[%emt 0:00:02]} 18. Qd2 {[%emt 0:00:17]} Nh5 {[%emt 0:00:20]} 19. Rxe8+ {[%emt 0:00:12]} Qxe8 {[%emt 0:00:01]} 20. Re1 {[%emt 0:00:03]} Qd7 {[%emt 0:00:12]} 21. Qe2 {[%emt 0:01:19]} a5 {[%emt 0:00:49]} 22. Ng5 {[%emt 0:00:58]} Nf6 {[%emt 0:01:12]} 23. Qe7 {[%emt 0:00:24]} Re8 {[%emt 0:00:16]} 24. Qxe8+ {[%emt 0:00:26]} Nxe8 {[%emt 0:00:02]} 25. Nf3 {[%emt 0:01:30]} Nf6 {[%emt 0:00:21]} 26. b3 {[%emt 0:00:03]} Bc5 {[%emt 0:00:17]} 27. a4 {[%emt 0:00:03]} Qd8 {[%emt 0:00:27]} 28. Re2 {[%emt 0:00:20]} Nd7 {[%emt 0:00:01]} 29. Re4 {[%emt 0:00:14]} f6 {[%emt 0:01:16]} 30. Rxf4 {[%emt 0:00:24]} Ne5 {[%emt 0:00:01]} 31. Be2 {[%emt 0:00:13]} Nxf3+ {[%emt 0:00:03]} 32. Bxf3 {[%emt 0:00:06]} Qa8 {[%emt 0:00:24]} 33. Re4 {[%emt 0:00:13]} Kf7 {[%emt 0:00:03]} 34. g4 {[%emt 0:00:30]} Qa7 {[%emt 0:00:00]} 35. Re2 {[%emt 0:00:04]} Qb6 {[%emt 0:00:01]} 36. Rb2 {[%emt 0:00:32]} Bd4 {[%emt 0:00:05]} 37. Rd2 {[%emt 0:00:06]} Be5 {[%emt 0:00:09]} 38. Rd3 {[%emt 0:00:18]} Qb4 {[%emt 0:00:05]} 39. Kf1 {[%emt 0:00:19]} Qa3 {[%emt 0:00:09]} 40. Bd1 {[%emt 0:00:18]} Qc1 {[%emt 0:00:12]} 41. Ke2 {[%emt 0:00:18]} Qf4 {[%emt 0:00:05]} 42. Bc2 {[%emt 0:00:32]} Qe4+ {[%emt 0:00:37]} 43. Re3 {[%emt 0:00:09]} Qxc2+ {[%emt 0:00:02]} 44. Kf3 {[%emt 0:00:07]} Bd4 {[%emt 0:00:09]} 45. Re2 {[%emt 0:00:39]} Qxb3+ {[%emt 0:00:02]} 46. Kg2 {[%emt 0:00:03]} Qxc4 {[%emt 0:00:04]} 47. Kf1 {[%emt 0:00:55]} Qxd5 {[%emt 0:00:11]} 48. Rc2 {[%emt 0:00:11]} c5 {[%emt 0:00:04]} 49. Ke1 {[%emt 0:00:18]} Qe4+ {[%emt 0:00:15]} 50. Kd1 {[%emt 0:00:09]} c4 {[%emt 0:00:20]} 51. Rd2 {[%emt 0:00:25]} c3 {[%emt 0:00:04]} 52. Rc2 {[%emt 0:00:09]} Qd3+ {[%emt 0:00:58]} 53. Kc1 {[%emt 0:00:03]} Qf1# 0-1

[Event "African Games Rapid Open 2019"]
[Site "Casablanca"]
[Date "2019.08.27"]
[Round "9.3"]
[White "Hamdouchi, Hicham"]
[Black "Bellahcene, Bilel"]
[Result "1-0"]
[ECO "B50"]
[WhiteElo "2562"]
[BlackElo "2550"]
[Annotator "ChessBase"]
[PlyCount "71"]
[EventDate "2019.08.26"]
[EventType "team-tourn"]
[EventCountry "MAR"]
[SourceTitle "playchess.com"]
[Source "ChessBase"]
[SourceQuality "1"]
[TimeControl "900+10"]

1. e4 {[%emt 0:00:00]} c5 {[%emt 0:00:00]} 2. Nf3 {[%emt 0:00:00]} d6 {[%emt 0:00:00]} 3. c3 {[%emt 0:00:00]} Nf6 {[%emt 0:00:00]} 4. h3 {[%emt 0:00:01]} g6 {[%emt 0:00:03]} 5. Bd3 {[%emt 0:00:03]} Bg7 {[%emt 0:00:02]} 6. Bc2 {[%emt 0:00:03]} O-O {[%emt 0:00:02]} 7. O-O {[%emt 0:00:05]} e5 {[%emt 0:00:26]} 8. d4 {[%emt 0:01:09]} Qc7 {[%emt 0:00:11]} 9. dxe5 {[%emt 0:01:03]} dxe5 {[%emt 0:00:02]} 10. Qe2 {[%emt 0:00:02]} a6 {[%emt 0:00:16]} 11. a4 {[%emt 0:00:05]} h6 {[%emt 0:00:03]} 12. Na3 {[%emt 0:00:05]} Be6 {[%emt 0:00:17]} 13. Nc4 {[%emt 0:02:26]} Nc6 {[%emt 0:00:01]} 14. Be3 {[%emt 0:00:02]} b6 {[%emt 0:01:17]} 15. Rfd1 {[%emt 0:01:18]} Bxc4 {[%emt 0:01:04]} 16. Qxc4 {[%emt 0:00:03]} Na5 {[%emt 0:00:01]} 17. Qe2 {[%emt 0:00:33]} c4 {[%emt 0:00:01]} 18. Rd2 {[%emt 0:00:30]} Rfe8 {[%emt 0:00:16]} 19. Rad1 {[%emt 0:00:03]} Re6 {[%emt 0:00:03]} 20. Nh2 {[%emt 0:00:16]} Qc6 {[%emt 0:02:54]} 21. Ng4 {[%emt 0:00:25]} Nxg4 {[%emt 0:01:04]} 22. hxg4 {[%emt 0:00:04]} Nb7 {[%emt 0:00:28]} 23. Rd5 {[%emt 0:00:27]} b5 {[%emt 0:00:06]} 24. axb5 {[%emt 0:00:27]} axb5 {[%emt 0:00:01]} 25. Qd2 {[%emt 0:00:14]} g5 {[%emt 0:00:24]} 26. Rd7 {[%emt 0:01:25]} Ra2 {[%emt 0:00:22]} 27. Bb1 {[%emt 0:02:18]} Ra1 {[%emt 0:00:02]} 28. Qd5 {[%emt 0:00:02]} Na5 {[%emt 0:00:33]} 29. Ra7 {[%emt 0:00:05]} Bf8 {[%emt 0:01:05]} 30. Ra8 {[%emt 0:00:44]} Nb3 {[%emt 0:00:34]} 31. Rb8 {[%emt 0:01:38]} Qc7 {[%emt 0:00:59]} 32. Qxb5 {[%emt 0:00:58]} Rd6 {[%emt 0:00:26]} 33. Rf1 {[%emt 0:00:02]} Nd2 {[%emt 0:01:58]} 34. Qe8 {[%emt 0:01:23]} Qxb8 {[%emt 0:02:31]} 35. Qxb8 {[%emt 0:00:02]} Nxf1 {[%emt 0:00:02]} 36. Bc5 1-0

[Event "African Games Rapid Open 2019"]
[Site "Casablanca"]
[Date "2019.08.27"]
[Round "9.4"]
[White "Wanyama, Harold"]
[Black "Mwale, Joseph"]
[Result "1-0"]
[ECO "E38"]
[WhiteElo "2293"]
[BlackElo "2231"]
[Annotator "NA"]
[PlyCount "79"]
[EventDate "2019.08.26"]
[EventType "team-tourn"]
[EventCountry "MAR"]
[SourceTitle "playchess.com"]
[Source "ChessBase"]
[SourceQuality "1"]
[TimeControl "900+10"]

1. c4 {[%emt 0:00:00]} e6 {[%emt 0:02:43]} 2. d4 {[%emt 0:00:06]} Nf6 {[%emt 0:00:02]} 3. Nc3 {[%emt 0:00:01]} Bb4 {[%emt 0:00:02]} 4. Qc2 {[%emt 0:00:08]} c5 {[%emt 0:00:12]} 5. dxc5 {[%emt 0:00:07]} Na6 {[%emt 0:00:13]} 6. Nf3 {[%emt 0:00:07]} O-O {[%emt 0:00:56]} 7. Bd2 {[%emt 0:00:31]} Nxc5 {[%emt 0:00:45]} 8. e3 {[%emt 0:00:11]} d5 {[%emt 0:00:07]} 9. cxd5 {[%emt 0:00:10]} exd5 {[%emt 0:00:03]} 10. a3 {[%emt 0:00:04]} Bxc3 {[%emt 0:00:03]} 11. Bxc3 {[%emt 0:00:01]} Nce4 {[%emt 0:00:04]} 12. Bd3 {[%emt 0:00:14]} Nxc3 {[%emt 0:00:06]} 13. Qxc3 {[%emt 0:00:02]} Ne4 {[%emt 0:00:03]} 14. Qd4 {[%emt 0:00:07]} Bg4 {[%emt 0:00:07]} 15. Bxe4 {[%emt 0:00:49]} dxe4 {[%emt 0:00:05]} 16. Qxe4 {[%emt 0:00:03]} Bxf3 {[%emt 0:00:02]} 17. Qxf3 {[%emt 0:00:03]} Qa5+ {[%emt 0:00:02]} 18. b4 {[%emt 0:00:07]} Qe5 {[%emt 0:00:02]} 19. O-O {[%emt 0:00:04]} b6 {[%emt 0:00:03]} 20. Rac1 {[%emt 0:00:30]} Rac8 {[%emt 0:00:05]} 21. Rxc8 {[%emt 0:00:18]} Rxc8 {[%emt 0:00:03]} 22. Rd1 {[%emt 0:00:02]} h6 {[%emt 0:00:07]} 23. g3 {[%emt 0:00:16]} Qc3 {[%emt 0:00:11]} 24. Rd7 {[%emt 0:00:10]} Rf8 {[%emt 0:00:02]} 25. Rxa7 {[%emt 0:00:04]} b5 {[%emt 0:00:06]} 26. Kg2 {[%emt 0:00:10]} Qc4 {[%emt 0:00:04]} 27. Re7 {[%emt 0:01:08]} Qb3 {[%emt 0:00:06]} 28. e4 {[%emt 0:00:03]} Qxf3+ {[%emt 0:00:05]} 29. Kxf3 {[%emt 0:00:13]} Ra8 {[%emt 0:00:01]} 30. Rb7 {[%emt 0:00:08]} Rxa3+ {[%emt 0:00:01]} 31. Kg2 {[%emt 0:00:07]} Rb3 {[%emt 0:00:03]} 32. Rxb5 {[%emt 0:00:02]} g6 {[%emt 0:00:02]} 33. Rb7 {[%emt 0:00:08]} Kg7 {[%emt 0:00:01]} 34. f4 {[%emt 0:00:07]} Kf6 {[%emt 0:00:02]} 35. Rb6+ {[%emt 0:00:10]} Ke7 {[%emt 0:00:01]} 36. e5 {[%emt 0:00:04]} Kd7 {[%emt 0:00:02]} 37. h4 {[%emt 0:00:06]} Ke7 {[%emt 0:00:05]} 38. h5 {[%emt 0:00:19]} gxh5 {[%emt 0:00:03]} 39. Rxh6 {[%emt 0:00:01]} Rxb4 {[%emt 0:00:01]} 40. Rxh5 {[%emt 0:00:02]} 1-0

[Event "African Games Rapid Open 2019"]
[Site "Casablanca"]
[Date "2019.08.27"]
[Round "9.5"]
[White "Makoto, Rodwell"]
[Black "Boudriga, Mohamed Ali"]
[Result "1-0"]
[ECO "E05"]
[WhiteElo "2373"]
[BlackElo "2325"]
[Annotator "NA"]
[PlyCount "103"]
[EventDate "2019.08.26"]
[EventType "team-tourn"]
[EventCountry "MAR"]
[SourceTitle "playchess.com"]
[Source "ChessBase"]
[SourceQuality "1"]
[TimeControl "900+10"]

1. Nf3 {[%emt 0:00:00]} Nf6 {[%emt 0:00:00]} 2. c4 {[%emt 0:00:00]} e6 {[%emt 0:00:00]} 3. g3 {[%emt 0:00:00]} d5 {[%emt 0:00:00]} 4. Bg2 {[%emt 0:00:00]} Be7 {[%emt 0:01:14]} 5. d4 {[%emt 0:00:00]} dxc4 {[%emt 0:00:27]} 6. O-O {[%emt 0:00:18]} O-O {[%emt 0:00:20]} 7. Qc2 {[%emt 0:00:23]} a6 {[%emt 0:00:13]} 8. a4 {[%emt 0:00:03]} Nc6 {[%emt 0:00:38]} 9. Qxc4 {[%emt 0:00:05]} Bd7 {[%emt 0:00:14]} 10. Bg5 {[%emt 0:00:15]} b5 {[%emt 0:00:07]} 11. Qc1 {[%emt 0:00:12]} Rb8 {[%emt 0:00:31]} 12. axb5 {[%emt 0:00:15]} axb5 {[%emt 0:00:01]} 13. Nc3 {[%emt 0:00:01]} h6 {[%emt 0:01:01]} 14. Bxf6 {[%emt 0:00:03]} Bxf6 {[%emt 0:00:02]} 15. Rd1 {[%emt 0:00:18]} Qe7 {[%emt 0:02:32]} 16. Ne4 {[%emt 0:00:14]} Rfc8 {[%emt 0:00:12]} 17. Nc5 {[%emt 0:00:11]} Be8 {[%emt 0:00:02]} 18. e3 {[%emt 0:00:12]} Rd8 {[%emt 0:00:21]} 19. Nd2 {[%emt 0:00:20]} g6 {[%emt 0:00:42]} 20. Nde4 {[%emt 0:00:24]} Bg7 {[%emt 0:00:01]} 21. Qc2 {[%emt 0:01:18]} Nb4 {[%emt 0:01:51]} 22. Qb3 {[%emt 0:00:08]} Nd5 {[%emt 0:00:01]} 23. Ra7 {[%emt 0:00:11]} Ra8 {[%emt 0:01:10]} 24. Rda1 {[%emt 0:00:13]} Rxa7 {[%emt 0:00:01]} 25. Rxa7 {[%emt 0:00:01]} e5 {[%emt 0:00:10]} 26. Nb7 {[%emt 0:04:48]} c6 {[%emt 0:00:02]} 27. Qa2 {[%emt 0:00:01]} Rd7 {[%emt 0:00:33]} 28. Nec5 {[%emt 0:00:06]} Rc7 {[%emt 0:00:03]} 29. e4 {[%emt 0:02:25]} Nb6 {[%emt 0:01:56]} 30. Qa6 {[%emt 0:01:23]} Nc8 {[%emt 0:00:24]} 31. Ra8 {[%emt 0:00:51]} exd4 {[%emt 0:00:45]} 32. b4 {[%emt 0:00:03]} Kh7 {[%emt 0:00:06]} 33. Bh3 {[%emt 0:02:24]} d3 {[%emt 0:01:03]} 34. Nxd3 {[%emt 0:00:03]} Rxb7 {[%emt 0:00:29]} 35. Bxc8 {[%emt 0:00:03]} Rc7 {[%emt 0:00:06]} 36. Qb6 {[%emt 0:01:07]} Qd6 {[%emt 0:00:19]} 37. Bh3 {[%emt 0:00:26]} Re7 {[%emt 0:00:04]} 38. Rd8 {[%emt 0:00:24]} Qf6 {[%emt 0:00:37]} 39. Qb8 {[%emt 0:00:32]} Qc3 {[%emt 0:01:27]} 40. Bf1 {[%emt 0:00:45]} Rd7 {[%emt 0:01:37]} 41. Rxe8 {[%emt 0:00:12]} Rxd3 {[%emt 0:00:02]} 42. Bxd3 {[%emt 0:00:01]} Qxd3 {[%emt 0:00:01]} 43. Qf4 {[%emt 0:00:08]} Qd7 {[%emt 0:00:13]} 44. Ra8 {[%emt 0:00:04]} Qe7 {[%emt 0:00:10]} 45. Rc8 {[%emt 0:00:21]} Qxb4 {[%emt 0:00:07]} 46. Rxc6 {[%emt 0:00:05]} Qb3 {[%emt 0:00:23]} 47. Rc7 {[%emt 0:00:27]} Kg8 {[%emt 0:00:03]} 48. Kg2 {[%emt 0:00:17]} h5 {[%emt 0:00:11]} 49. Qd6 {[%emt 0:00:10]} Qb1 {[%emt 0:00:23]} 50. Qe7 {[%emt 0:00:07]} Qb3 {[%emt 0:00:03]} 51. Qe8+ {[%emt 0:00:02]} Kh7 {[%emt 0:00:02]} 52. Qxf7 {[%emt 0:00:02]} 1-0

[Event "African Games Rapid Open 2019"]
[Site "Casablanca"]
[Date "2019.08.27"]
[Round "9.6"]
[White "Ssegwanyi, Arthur"]
[Black "Adu, Oladapo"]
[Result "0-1"]
[ECO "B51"]
[WhiteElo "2335"]
[BlackElo "2273"]
[Annotator "NA"]
[PlyCount "166"]
[EventDate "2019.08.26"]
[EventType "team-tourn"]
[EventCountry "MAR"]
[SourceTitle "playchess.com"]
[Source "ChessBase"]
[SourceQuality "1"]
[TimeControl "900+10"]

1. e4 {[%emt 0:00:00]} c5 {[%emt 0:00:00]} 2. Nf3 {[%emt 0:00:00]} d6 {[%emt 0:00:00]} 3. Bb5+ {[%emt 0:00:07]} Nd7 {[%emt 0:00:00]} 4. O-O {[%emt 0:00:08]} Ngf6 {[%emt 0:00:01]} 5. Re1 {[%emt 0:00:05]} e6 {[%emt 0:00:04]} 6. c3 {[%emt 0:00:09]} a6 {[%emt 0:00:13]} 7. Bf1 {[%emt 0:00:04]} Qc7 {[%emt 0:00:04]} 8. d4 {[%emt 0:00:05]} e5 {[%emt 0:00:03]} 9. Nbd2 {[%emt 0:00:34]} Be7 {[%emt 0:00:04]} 10. Nc4 {[%emt 0:01:06]} O-O {[%emt 0:00:14]} 11. dxe5 {[%emt 0:00:12]} Nxe5 {[%emt 0:00:10]} 12. Ne3 {[%emt 0:02:01]} Re8 {[%emt 0:00:13]} 13. Nxe5 {[%emt 0:00:28]} dxe5 {[%emt 0:00:02]} 14. Bc4 {[%emt 0:00:06]} b5 {[%emt 0:00:44]} 15. Bd5 {[%emt 0:01:21]} Bb7 {[%emt 0:00:43]} 16. Bxb7 {[%emt 0:01:55]} Qxb7 {[%emt 0:00:02]} 17. Nf5 {[%emt 0:00:04]} Bf8 {[%emt 0:01:28]} 18. Qf3 {[%emt 0:00:14]} Rad8 {[%emt 0:00:15]} 19. Bg5 {[%emt 0:00:33]} Re6 {[%emt 0:00:19]} 20. h4 {[%emt 0:00:34]} Qc6 {[%emt 0:00:32]} 21. h5 {[%emt 0:01:39]} h6 {[%emt 0:00:08]} 22. Bh4 {[%emt 0:00:18]} c4 {[%emt 0:00:05]} 23. Qg3 {[%emt 0:02:21]} Rd3 {[%emt 0:01:39]} 24. f3 {[%emt 0:02:41]} Nxh5 {[%emt 0:00:15]} 25. Qh2 {[%emt 0:00:22]} Nf4 {[%emt 0:00:19]} 26. Bg3 {[%emt 0:00:03]} Ng6 {[%emt 0:00:22]} 27. Kh1 {[%emt 0:00:35]} Bc5 {[%emt 0:00:24]} 28. Qh5 {[%emt 0:00:25]} Qd7 {[%emt 0:00:12]} 29. Qg4 {[%emt 0:00:22]} Qd8 {[%emt 0:00:30]} 30. Bh4 {[%emt 0:00:27]} Qd7 {[%emt 0:00:23]} 31. Bg3 {[%emt 0:00:02]} Kh7 {[%emt 0:00:11]} 32. Rac1 {[%emt 0:00:04]} Rd2 {[%emt 0:00:02]} 33. Rb1 {[%emt 0:00:00]} Bf8 {[%emt 0:00:25]} 34. Ne3 {[%emt 0:00:09]} Red6 {[%emt 0:00:05]} 35. Qh5 {[%emt 0:00:07]} Nf4 {[%emt 0:00:10]} 36. Qh2 {[%emt 0:00:17]} Rf6 {[%emt 0:00:22]} 37. Ng4 {[%emt 0:00:05]} Qe6 {[%emt 0:01:14]} 38. Nxf6+ {[%emt 0:00:03]} Qxf6 {[%emt 0:00:01]} 39. Bxf4 {[%emt 0:00:02]} exf4 {[%emt 0:00:01]} 40. Red1 {[%emt 0:00:06]} Rc2 {[%emt 0:00:06]} 41. Rd5 {[%emt 0:00:09]} Bd6 {[%emt 0:00:07]} 42. Qh3 {[%emt 0:00:04]} g6 {[%emt 0:00:03]} 43. Qg4 {[%emt 0:00:15]} Be5 {[%emt 0:00:22]} 44. Rd7 {[%emt 0:00:05]} Kg7 {[%emt 0:00:02]} 45. Ra7 {[%emt 0:00:13]} h5 {[%emt 0:00:08]} 46. Qh3 {[%emt 0:00:04]} Rd2 {[%emt 0:00:08]} 47. Ra8 {[%emt 0:00:09]} b4 {[%emt 0:00:11]} 48. cxb4 {[%emt 0:00:46]} Bxb2 {[%emt 0:00:02]} 49. Qc8 {[%emt 0:00:12]} Qh4+ {[%emt 0:00:02]} 50. Qh3 {[%emt 0:00:02]} Qf2 {[%emt 0:00:09]} 51. Rg1 {[%emt 0:01:14]} c3 {[%emt 0:00:06]} 52. Qc8 {[%emt 0:00:09]} Qh4+ {[%emt 0:00:01]} 53. Qh3 {[%emt 0:00:02]} Qxh3+ {[%emt 0:00:04]} 54. gxh3 {[%emt 0:00:02]} c2 {[%emt 0:00:02]} 55. Rc8 {[%emt 0:00:03]} c1=Q {[%emt 0:00:16]} 56. Rcxc1 {[%emt 0:00:06]} Bxc1 {[%emt 0:00:01]} 57. Rxc1 {[%emt 0:00:02]} Rxa2 {[%emt 0:00:01]} 58. Kg1 {[%emt 0:00:12]} Kf6 {[%emt 0:00:08]} 59. h4 {[%emt 0:00:09]} Ra4 {[%emt 0:00:20]} 60. Rc4 {[%emt 0:00:34]} Kg7 {[%emt 0:00:04]} 61. Rc6 {[%emt 0:00:09]} Rxb4 {[%emt 0:00:54]} 62. Rxa6 {[%emt 0:00:01]} Rb7 {[%emt 0:00:19]} 63. Rc6 {[%emt 0:00:02]} Re7 {[%emt 0:00:07]} 64. Ra6 {[%emt 0:00:05]} f6 {[%emt 0:00:02]} 65. Kg2 {[%emt 0:00:02]} g5 {[%emt 0:00:07]} 66. hxg5 {[%emt 0:00:25]} fxg5 {[%emt 0:00:00]} 67. Ra5 {[%emt 0:00:15]} Kh6 {[%emt 0:00:01]} 68. Ra6+ {[%emt 0:00:04]} Kh7 {[%emt 0:00:01]} 69. Ra5 {[%emt 0:00:09]} Rg7 {[%emt 0:00:02]} 70. Rf5 {[%emt 0:00:15]} Kg6 {[%emt 0:00:01]} 71. Ra5 {[%emt 0:00:07]} Rf7 {[%emt 0:00:03]} 72. Ra6+ {[%emt 0:00:04]} Rf6 {[%emt 0:00:01]} 73. Ra8 {[%emt 0:00:08]} g4 {[%emt 0:00:08]} 74. Rg8+ {[%emt 0:00:41]} Kh7 {[%emt 0:00:01]} 75. Rg5 {[%emt 0:00:05]} Kh6 {[%emt 0:00:00]} 76. Rg8 {[%emt 0:00:11]} g3 {[%emt 0:01:15]} 77. Rh8+ {[%emt 0:00:21]} Kg5 {[%emt 0:00:04]} 78. Rg8+ {[%emt 0:00:07]} Kh4 {[%emt 0:00:06]} 79. Rg7 {[%emt 0:00:05]} Rb6 {[%emt 0:00:07]} 80. e5 {[%emt 0:00:07]} Rb2+ {[%emt 0:00:04]} 81. Kf1 {[%emt 0:00:04]} Rf2+ {[%emt 0:00:01]} 82. Kg1 {[%emt 0:00:35]} Rxf3 {[%emt 0:00:06]} 83. Rf7 {[%emt 0:00:03]} Kg4 0-1

[Event "African Games Rapid Open 2019"]
[Site "Casablanca"]
[Date "2019.08.27"]
[Round "9.7"]
[White "Aderito, Pedro"]
[Black "Zaibi, Amir"]
[Result "1/2-1/2"]
[ECO "B30"]
[WhiteElo "2301"]
[BlackElo "2367"]
[Annotator "NA"]
[PlyCount "49"]
[EventDate "2019.08.26"]
[EventType "team-tourn"]
[EventCountry "MAR"]
[SourceTitle "playchess.com"]
[Source "ChessBase"]
[SourceQuality "1"]
[TimeControl "900+10"]

1. e4 {[%emt 0:00:00]} c5 {[%emt 0:00:00]} 2. Nf3 {[%emt 0:00:00]} Nc6 {[%emt 0:00:00]} 3. Bb5 {[%emt 0:00:00]} e5 {[%emt 0:00:00]} 4. c3 {[%emt 0:00:09]} Bd6 {[%emt 0:00:03]} 5. O-O {[%emt 0:00:05]} Nge7 {[%emt 0:00:04]} 6. Re1 {[%emt 0:00:03]} O-O {[%emt 0:01:09]} 7. a4 {[%emt 0:00:58]} Bc7 {[%emt 0:00:12]} 8. Na3 {[%emt 0:00:08]} a6 {[%emt 0:00:33]} 9. Bf1 {[%emt 0:01:06]} d5 {[%emt 0:00:33]} 10. d3 {[%emt 0:00:19]} b5 {[%emt 0:00:37]} 11. exd5 {[%emt 0:01:43]} Nxd5 {[%emt 0:00:20]} 12. Bd2 {[%emt 0:02:06]} Rb8 {[%emt 0:00:17]} 13. axb5 {[%emt 0:00:08]} axb5 {[%emt 0:00:01]} 14. d4 {[%emt 0:03:34]} b4 {[%emt 0:01:13]} 15. Nb5 {[%emt 0:00:08]} bxc3 {[%emt 0:01:04]} 16. bxc3 {[%emt 0:00:02]} exd4 {[%emt 0:00:18]} 17. cxd4 {[%emt 0:00:04]} Nxd4 {[%emt 0:00:41]} 18. Nfxd4 {[%emt 0:00:18]} cxd4 {[%emt 0:00:02]} 19. Nxc7 {[%emt 0:00:35]} Qxc7 {[%emt 0:00:28]} 20. Qa4 {[%emt 0:00:46]} Qc5 {[%emt 0:01:52]} 21. Re4 {[%emt 0:00:41]} Nc3 {[%emt 0:02:15]} 22. Bxc3 {[%emt 0:00:02]} dxc3 {[%emt 0:00:09]} 23. Rc4 {[%emt 0:00:01]} Qe5 {[%emt 0:01:40]} 24. Rc1 {[%emt 0:01:03]} Be6 {[%emt 0:00:55]} 25. R4xc3 1/2-1/2

[Event "African Games Rapid Open 2019"]
[Site "Casablanca"]
[Date "2019.08.27"]
[Round "9.8"]
[White "Tissir, Mohamed"]
[Black "Chumfwa, Stanley"]
[Result "0-1"]
[ECO "B90"]
[WhiteElo "2379"]
[BlackElo "2317"]
[Annotator "NA"]
[PlyCount "82"]
[EventDate "2019.08.26"]
[EventType "team-tourn"]
[EventCountry "MAR"]
[SourceTitle "playchess.com"]
[Source "ChessBase"]
[SourceQuality "1"]
[TimeControl "900+10"]

1. e4 {[%emt 0:00:00]} c5 {[%emt 0:00:00]} 2. Nc3 {[%emt 0:00:00]} d6 {[%emt 0:00:00]} 3. Nf3 {[%emt 0:00:00]} Nf6 {[%emt 0:00:05]} 4. d4 {[%emt 0:00:00]} cxd4 {[%emt 0:00:01]} 5. Nxd4 a6 6. Bc4 {[%emt 0:00:15]} e6 {[%emt 0:00:12]} 7. Bb3 {[%emt 0:00:01]} Nc6 {[%emt 0:00:19]} 8. Be3 {[%emt 0:00:18]} Be7 {[%emt 0:00:02]} 9. Qe2 {[%emt 0:00:38]} Qc7 {[%emt 0:00:02]} 10. O-O-O {[%emt 0:00:05]} Na5 {[%emt 0:00:02]} 11. g4 {[%emt 0:00:05]} b5 {[%emt 0:00:07]} 12. g5 {[%emt 0:00:01]} Nxb3+ {[%emt 0:00:08]} 13. axb3 {[%emt 0:00:51]} Nd7 {[%emt 0:00:03]} 14. Kb1 {[%emt 0:00:42]} b4 {[%emt 0:00:07]} 15. Na4 {[%emt 0:00:02]} Nc5 {[%emt 0:00:06]} 16. Bd2 {[%emt 0:05:27]} Bd7 {[%emt 0:02:47]} 17. h4 {[%emt 0:02:03]} Nxa4 {[%emt 0:02:51]} 18. bxa4 {[%emt 0:00:04]} Bxa4 {[%emt 0:00:02]} 19. Bxb4 {[%emt 0:00:16]} O-O {[%emt 0:00:06]} 20. Rh3 {[%emt 0:00:21]} Rab8 {[%emt 0:01:54]} 21. Qd2 {[%emt 0:01:07]} Qb6 {[%emt 0:00:28]} 22. Bc3 {[%emt 0:00:12]} Rfc8 {[%emt 0:00:02]} 23. f4 {[%emt 0:00:35]} Bf8 {[%emt 0:01:23]} 24. h5 {[%emt 0:00:04]} Bd7 {[%emt 0:01:29]} 25. Rg3 {[%emt 0:01:24]} Qb7 {[%emt 0:00:49]} 26. Re1 {[%emt 0:00:03]} d5 {[%emt 0:00:09]} 27. g6 {[%emt 0:00:46]} fxg6 {[%emt 0:01:56]} 28. Nb3 {[%emt 0:01:40]} Rxc3 {[%emt 0:00:32]} 29. Rxc3 {[%emt 0:01:15]} Bb4 {[%emt 0:00:04]} 30. hxg6 {[%emt 0:00:06]} hxg6 {[%emt 0:00:28]} 31. exd5 {[%emt 0:00:15]} Qxd5 {[%emt 0:01:13]} 32. Qxd5 {[%emt 0:00:43]} exd5 {[%emt 0:00:02]} 33. Rc7 {[%emt 0:00:01]} Bxe1 {[%emt 0:00:08]} 34. Rxd7 {[%emt 0:00:01]} Bg3 {[%emt 0:00:32]} 35. Rxd5 {[%emt 0:00:25]} Bxf4 36. Nc5 Rb6 {[%emt 0:00:31]} 37. Rd8+ {[%emt 0:00:26]} Kh7 {[%emt 0:00:26]} 38. Ra8 {[%emt 0:00:51]} g5 {[%emt 0:00:11]} 39. Nxa6 g4 {[%emt 0:00:03]} 40. Nc5 {[%emt 0:00:21]} g3 {[%emt 0:00:08]} 41. Nd7 {[%emt 0:00:14]} g2 {[%emt 0:00:08]} 0-1

[Event "African Games Rapid Open 2019"]
[Site "Casablanca"]
[Date "2019.08.27"]
[Round "9.9"]
[White "Arab, Adlane"]
[Black "Khetho, Phemelo"]
[Result "1-0"]
[ECO "E71"]
[WhiteElo "2485"]
[BlackElo "2178"]
[Annotator "ChessBase"]
[PlyCount "59"]
[EventDate "2019.08.26"]
[EventType "team-tourn"]
[EventCountry "MAR"]
[SourceTitle "playchess.com"]
[Source "ChessBase"]
[SourceQuality "1"]
[TimeControl "900+10"]

1. d4 {[%emt 0:00:00]} Nf6 {[%emt 0:00:00]} 2. c4 {[%emt 0:00:00]} g6 {[%emt 0:00:00]} 3. Nc3 {[%emt 0:00:00]} Bg7 {[%emt 0:00:00]} 4. e4 {[%emt 0:00:00]} d6 {[%emt 0:00:00]} 5. h3 {[%emt 0:00:01]} c6 {[%emt 0:00:00]} 6. Bg5 {[%emt 0:00:10]} a6 {[%emt 0:00:06]} 7. Nf3 {[%emt 0:00:06]} b5 {[%emt 0:00:01]} 8. a3 {[%emt 0:00:03]} h6 {[%emt 0:00:11]} 9. Be3 {[%emt 0:00:05]} O-O {[%emt 0:00:18]} 10. Qd2 {[%emt 0:00:02]} Kh7 {[%emt 0:00:01]} 11. Be2 {[%emt 0:00:30]} bxc4 {[%emt 0:00:02]} 12. Bxc4 {[%emt 0:00:03]} d5 {[%emt 0:00:02]} 13. exd5 {[%emt 0:00:03]} cxd5 {[%emt 0:00:01]} 14. Bd3 {[%emt 0:00:04]} Bb7 {[%emt 0:00:11]} 15. O-O {[%emt 0:00:04]} Nbd7 {[%emt 0:00:07]} 16. Qe2 {[%emt 0:00:29]} Ne4 {[%emt 0:00:05]} 17. Rac1 {[%emt 0:00:08]} f5 {[%emt 0:00:27]} 18. Bf4 {[%emt 0:00:15]} Ndf6 {[%emt 0:00:28]} 19. Ne5 {[%emt 0:00:06]} Nxc3 {[%emt 0:00:14]} 20. Rxc3 {[%emt 0:00:03]} Ne4 {[%emt 0:00:01]} 21. Rc2 {[%emt 0:00:04]} e6 {[%emt 0:01:32]} 22. Rfc1 {[%emt 0:00:07]} Bxe5 {[%emt 0:00:05]} 23. Bxe5 {[%emt 0:00:02]} Rf7 {[%emt 0:00:01]} 24. Rc7 {[%emt 0:00:16]} Ng5 {[%emt 0:02:59]} 25. Rxf7+ {[%emt 0:00:09]} Nxf7 {[%emt 0:00:03]} 26. Rc7 {[%emt 0:00:04]} Kg8 {[%emt 0:00:04]} 27. Rxb7 {[%emt 0:00:05]} Qg5 {[%emt 0:00:07]} 28. Rc7 {[%emt 0:00:11]} Qd8 {[%emt 0:00:28]} 29. b4 {[%emt 0:00:07]} Nd6 {[%emt 0:00:12]} 30. Rg7+ {[%emt 0:00:14]} 1-0